[Event "SixDays Budapest January IM-A 2025"]
[Site "Budapest"]
[Date "2025.01.26"]
[Round "1.5"]
[White "Chubakov, Sultan"]
[Black "Papp, Levente"]
[Result "0-1"]
[Annotator "TA"]
[ECO "A10"]
[WhiteElo "2237"]
[BlackElo "2386"]
[PlyCount "74"]
[EventDate "2025.01.24"]
[EventType "tourn"]
[EventCountry "HUN"]
[SourceTitle "playchess.com"]
[Source "ChessBase"]
[SourceQuality "1"]
[TimeControl "5400+30"]

{[%evp 13,74,2,14,-1,-8,-25,-34,-41,-33,-56,-56,-57,-29,-33,-26,-27,-27,-12,-27,-19,0,-9,0,0,0,0,0,-17,-9,-78,-109,-121,-118,-122,-103,-142,-141,-123,-120,-159,-150,-150,-164,-141,-152,-168,-108,-241,-189,-458,-439,-450,-265,-253,-266,-258,-241,-255,-249,-571,-567,-887,-854]} 1. c4 {[%emt 0:00:27]} b6 {[%emt 0:11:08]} 2. Nc3 {[%emt 0:02:16]} Bb7 {[%emt 0:00:08]} 3. d4 {[%emt 0:01:22]} Nf6 {[%emt 0:00:16]} 4. Nf3 {[%emt 0:02:18]} g6 {[%emt 0:00:36]} 5. g3 {[%emt 0:03:27]} Bg7 {[%emt 0:00:06]} 6. Bg2 {[%emt 0:02:45]} O-O {[%emt 0:00:56]} 7. O-O {[%emt 0:01:53]} Ne4 {[%emt 0:00:13]} 8. Qd3 {[%emt 0:07:10] A50: Queen's Fianchetto Defence (1 d4 Nf6 2 c4 b6).} Nxc3 {[%emt 0:02:19]} 9. bxc3 {[%emt 0:00:40]} Nc6 {[%emt 0:14:21]} 10. e4 {[%emt 0:02:54] Black is slightly better.} Na5 {[%emt 0:04:20]} 11. Be3 {[%emt 0:05:32]} Ba6 {[%emt 0:05:42]} 12. Nd2 {[%emt 0:03:13]} c6 {[%emt 0:03:55][%cal Oa5c4]} 13. e5 {[%emt 0:05:13]} d5 {[%emt 0:05:28]} 14. exd6 {[%emt 0:00:36]} exd6 $146 {[%emt 0:00:17]} (14... Qxd6 15. Rfe1 Rad8 16. c5 Bxd3 17. cxd6 exd6 18. Nb3 d5 19. Nxa5 bxa5 20. Bf4 Rd7 {0-1 Bobanac,M (2250)-Matkovic,T (2290) CRO-chT3 Zadar 1999 (1)}) 15. d5 $1 {[%emt 0:02:08]} c5 {[%emt 0:08:55]} 16. Rfe1 {[%emt 0:05:54]} Qd7 {[%emt 0:01:16]} 17. Bf4 {[%emt 0:02:51]} Rfe8 {[%emt 0:00:36]} 18. Bf1 {[%emt 0:05:01]} Rad8 {[%emt 0:07:55]} 19. Qc2 {[%emt 0:04:51]} f5 {[%emt 0:07:40]} 20. Re3 {[%emt 0:13:48]} Rxe3 {[%emt 0:09:39]} 21. fxe3 {[%emt 0:00:57]} (21. Bxe3 $11 {remains equal.} Re8 22. Rd1) 21... Qe7 {[%emt 0:03:12]} 22. e4 {[%emt 0:03:03]} g5 {[%emt 0:01:00]} 23. Be3 {[%emt 0:00:22]} Rf8 $36 {[%emt 0:01:18][%mdl 2048] Black has strong initiative.} 24. Qd3 {[%emt 0:07:27]} fxe4 {[%emt 0:02:20][%csl Oe4] Black has a strong passed pawn} 25. Qc2 {[%emt 0:05:48]} Qe5 {[%emt 0:05:11] Black is more active.} 26. Re1 {[%emt 0:02:55] [#]} Rxf1+ $1 {[%emt 0:03:40][%mdl 512]} 27. Nxf1 {[%emt 0:04:53]} (27. Rxf1 Nxc4) 27... Bxc4 {[%emt 0:00:44]} (27... Qxc3 28. Qxe4 Qe5 (28... Qxe1 $2 29. Qe6+ Kf8 30. Qxd6+ Kg8 31. Qe6+ Kf8 32. Bxc5+ bxc5 33. Qxe1 $18) 29. Qf3 Bxc4 (29... Nxc4 30. Bf2 $14) 30. Bf2 Bxd5 (30... Qxd5 31. Re8+) 31. Qd1 $18) (27... Nxc4 28. Qa4 Nxe3 (28... Qxc3 $2 29. Qxa6 Qxe1 30. Qxc4 $18) 29. Qxa6 Nxd5 30. Ne3 (30. Qc8+ Kf7 $17) 30... Nxe3 (30... Nxc3 31. Qc8+ Kf7 32. Rf1+ Bf6 33. Ng4 $18) 31. Rxe3 $15) 28. Nd2 {[%emt 0:02:58]} Bxd5 {[%emt 0:00:11] A strong pair of Bishops.} 29. c4 {[%emt 0:00:25]} Bf7 {[%emt 0:00:42]} (29... Bb7 $19 30. Qd1 h6) 30. Qa4 {[%emt 0:01:49] Loses the game.} (30. Qxe4 $17 Nxc4 31. Qa8+ Bf8 32. Nxc4 Bxc4 33. Bf2) 30... h6 {[%emt 0:00:40] Threatens to win with ...Qc3.} 31. Qd7 $2 {[%emt 0:00:29]} (31. Bf2 {is a better defense.}) 31... Nxc4 $19 {[%emt 0:00:30]} ({Not} 31... Bxc4 32. Qxa7 Bd3 (32... Bxa2 33. Qxb6 c4 34. Nxe4 $11) 33. Bf2 $17) 32. Rf1 {[%emt 0:00:29]} Nxe3 {[%emt 0:00:34]} (32... Be8 $142 33. Nxc4 Bxd7 34. Nxe5 Bxe5) 33. Qxf7+ {[%emt 0:00:31]} Kh7 {[%emt 0:00:13]} 34. Re1 {[%emt 0:00:24]} Qd4 {[%emt 0:00:22]} 35. Nb3 {[%emt 0:00:36] [#]} Qd5 {[%emt 0:00:52]} 36. Qxa7 {[%emt 0:00:30]} (36. Qxd5 Nxd5 37. Rxe4) 36... Nc2 {[%emt 0:00:25]} 37. Rc1 {[%emt 0:00:33]} c4 {[%emt 0:00:20] Weighted Error Value: White=0.62/Black=0.15 (very precise)   Mistake:       	White=4     	Black=2      Inaccurate:     	White=3     	Black=1      OK:         	White=12    	Black=14     Best:        	---       	Black=2      Strong:       	White=1     	---} 0-1

[Event "SixDays Budapest January IM-A 2025"]
[Site "Budapest"]
[Date "2025.01.27"]
[Round "2.1"]
[White "Karacsonyi, Kata"]
[Black "Papp, Levente"]
[Result "0-1"]
[Annotator "TA"]
[ECO "C08"]
[WhiteElo "2183"]
[BlackElo "2386"]
[PlyCount "114"]
[EventDate "2025.01.24"]
[EventType "tourn"]
[EventCountry "HUN"]
[SourceTitle "playchess.com"]
[Source "ChessBase"]
[SourceQuality "1"]
[TimeControl "5400+30"]

{[%evp 20,114,39,37,29,31,37,44,37,20,25,0,0,0,28,27,50,30,33,36,35,35,44,23,35,11,6,14,27,15,12,16,16,24,62,50,70,41,69,66,70,68,83,44,53,36,80,16,50,46,38,43,71,16,27,-8,-15,-26,36,0,0,-20,-16,-14,-20,-11,-27,-36,-40,-29,-39,-28,-8,-8,-23,-10,-16,-12,0,0,-5,-379,-379,-310,-275,-466,-466,-459,-447,-5675,-5181,-29982,-29983,-29983,-29984,-29989,-29990]} 1. e4 {[%emt 0:00:05]} e6 {[%emt 0:10:14]} 2. d4 {[%emt 0:00:07]} d5 {[%emt 0:00:05]} 3. Nd2 {[%emt 0:00:10]} c5 {[%emt 0:00:38]} 4. exd5 {[%emt 0:00:27]} exd5 {[%emt 0:00:07]} 5. Ngf3 {[%emt 0:00:36]} a6 {[%emt 0:00:27]} 6. Be2 {[%emt 0:03:11]} Nf6 {[%emt 0:00:52]} 7. O-O {[%emt 0:01:10]} Be7 {[%emt 0:00:57]} 8. dxc5 {[%emt 0:01:04]} Bxc5 {[%emt 0:00:08]} 9. Nb3 {[%emt 0:01:05]} Be7 {[%emt 0:02:44]} 10. c3 {[%emt 0:07:54]} O-O {[%emt 0:00:16]} 11. Bg5 {[%emt 0:03:05]} Nc6 {[%emt 0:12:02] C08: French Tarrasch: 3...c5 4 exd5 exd5 sidelines.} 12. Qc2 {[%emt 0:08:31]} Ne4 $146 {[%emt 0:04:05]} (12... h6 13. Bh4 g5 14. Bg3 Ne4 15. Rad1 Bf5 16. Nfd4 Bg6 17. Bd3 Qb6 18. Nxc6 bxc6 19. Be5 {1-0 Sharif,M (2440)-Miralles,G (2410) Marseille 1986}) 13. Bxe7 {[%emt 0:01:27]} Qxe7 {[%emt 0:00:12] White is slightly better.} 14. Rad1 {[%emt 0:07:07]} Bf5 {[%emt 0:02:43][%cal Oe4g3]} 15. Bd3 {[%emt 0:00:54]} (15. Rxd5 Ng3 16. Rxf5 Nxf5 17. Bd3) 15... Bg4 {[%emt 0:13:21]} 16. Be2 {[%emt 0:01:35]} Rad8 {[%emt 0:02:41]} 17. Nfd4 {[%emt 0:02:52]} Bc8 {[%emt 0:03:25]} 18. Bd3 {[%emt 0:15:45]} Nf6 {[%emt 0:06:10]} 19. Rfe1 {[%emt 0:03:11]} Qc7 {[%emt 0:00:31]} 20. h3 {[%emt 0:14:07]} Ne5 {[%emt 0:06:31]} 21. Bf5 {[%emt 0:01:04]} Rfe8 {[%emt 0:01:11]} 22. Nd2 {[%emt 0:07:52][%cal Bb3d2,Bd2f1,Bf1e3][%mdl 32]} Bxf5 {[%emt 0:01:47]} 23. Qxf5 {[%emt 0:03:18]} Ng6 {[%emt 0:00:08] Prevents Qf4.} 24. N4f3 {[%emt 0:05:32]} Qb6 {[%emt 0:01:09]} 25. Qc2 {[%emt 0:01:16]} (25. Nb3 {feels hotter.} Ne4 26. Ng5 Nf6 27. Qc2) 25... Rc8 {[%emt 0:12:18]} 26. Nf1 {[%emt 0:02:06]} Red8 {[%emt 0:10:53][%cal Od5d4]} 27. Ne3 {[%emt 0:02:32]} Rc6 {[%emt 0:03:50]} 28. Qb3 {[%emt 0:01:10][%cal Re3d5]} Qxb3 {[%emt 0:02:07]} 29. axb3 {[%emt 0:00:02][%csl Od5] White attacks a weakness} Rcd6 {[%emt 0:00:38]} 30. g3 {[%emt 0:01:53]} Ne7 {[%emt 0:00:45]} 31. Rd3 {[%emt 0:01:09]} g6 {[%emt 0:01:11]} 32. Red1 {[%emt 0:00:39]} Ne4 {[%emt 0:00:49]} 33. Rd4 {[%emt 0:01:15]} (33. b4 $16) 33... Nc5 {[%emt 0:00:44]} 34. b4 {[%emt 0:01:22]} Na4 {[%emt 0:00:08]} 35. R1d2 {[%emt 0:00:39]} b5 {[%emt 0:01:09][%csl Oa6,Od5] Black has weak pawns} 36. Ne5 {[%emt 0:00:40]} ({White should play} 36. Kg2 $16) 36... Nb6 $11 {[%emt 0:00:19]} 37. Rf4 {[%emt 0:00:48]} f6 {[%emt 0:00:24]} 38. Nf3 {[%emt 0:01:09]} Nc6 {[%emt 0:00:04]} (38... g5 $11 39. Rfd4 Nc6) 39. h4 {[%emt 0:00:32]} Ne5 {[%emt 0:01:19]} 40. Nxe5 {[%emt 0:00:34]} fxe5 {[%emt 0:00:02]} 41. Rg4 {[%emt 0:00:22]} d4 {[%emt 0:00:36]} 42. cxd4 {[%emt 0:00:30]} Rxd4 {[%emt 0:00:28]} 43. Rc2 {[%emt 0:00:39] [#]} Nc4 $1 {[%emt 0:01:08]} 44. Rg5 $1 {[%emt 0:00:30]} Nxe3 {[%emt 0:00:12]} 45. fxe3 {[%emt 0:00:05][%mdl 4096] Endgame KRR-KRR} Rd1+ {[%emt 0:00:40]} 46. Kf2 {[%emt 0:00:02]} R1d2+ {[%emt 0:00:39]} 47. Rxd2 {[%emt 0:00:05]} Rxd2+ {[%emt 0:00:04] KR-KR} 48. Kf3 {[%emt 0:00:04]} Rxb2 {[%emt 0:00:05]} 49. Rxe5 {[%emt 0:00:30]} Rxb4 {[%emt 0:00:01] [#] and ...a5 would now be decisive} 50. Re7 $2 {[%emt 0:00:29][%mdl 8192] Now White is beyond hope.} (50. Re8+ $1 $11 {and White has nothing to worry.} Kf7 51. Ra8) 50... a5 $19 {[%emt 0:00:21]} 51. Ra7 {[%emt 0:01:01]} a4 {[%emt 0:00:05]} 52. e4 $2 {[%emt 0:01:32]} (52. g4 {was called for.}) 52... Rb3+ {[%emt 0:00:02]} 53. Kf4 {[%emt 0:00:04]} a3 {[%emt 0:00:06]} 54. e5 {[%emt 0:01:01]} (54. Ra8+ $142 Kf7 55. g4) 54... Rb4+ {[%emt 0:00:33]} 55. Kg5 {[%emt 0:00:14]} Ra4 {[%emt 0:00:04] Black mates.} 56. Rc7 {[%emt 0:00:53]} a2 {[%emt 0:00:36]} 57. Kf6 {[%emt 0:00:28]} Ra6+ {[%emt 0:00:05] Weighted Error Value: White=0.55/Black=0.09 (flawless)   Loses game:     	White=1     	---        Mistake:       	White=4     	Black=1      Inaccurate:     	White=5     	Black=6      OK:         	White=11    	Black=17     Best:        	White=4     	Black=4      Strong:       	White=1     	---} ({Weaker is} 57... a1=B 58. Rc8#) 0-1

[Event "SixDays Budapest January IM-A 2025"]
[Site "Budapest"]
[Date "2025.01.27"]
[Round "2.2"]
[White "Kiremitciyan, Ari"]
[Black "Chubakov, Sultan"]
[Result "1/2-1/2"]
[Annotator "TA"]
[ECO "D27"]
[WhiteElo "2251"]
[BlackElo "2237"]
[PlyCount "164"]
[EventDate "2025.01.24"]
[EventType "tourn"]
[EventCountry "HUN"]
[SourceTitle "playchess.com"]
[Source "ChessBase"]
[SourceQuality "1"]
[TimeControl "5400+30"]

{[%evp 15,164,39,40,34,47,14,46,28,41,45,57,47,33,18,39,0,22,22,7,0,0,0,0,-5,0,0,0,0,8,1,22,5,4,5,21,21,21,21,21,21,21,21,21,21,21,21,21,13,21,21,21,21,21,21,21,2,20,2,14,0,14,14,14,14,21,14,14,14,14,14,14,14,14,14,14,14,14,14,14,14,14,14,14,14,14,2,14,0,0,0,0,0,0,0,0,0,0,0,0,0,0,0,0,0,0,0,0,-6,0,-8,-2,-12,8,8,8,10,15,16,22,0,29,8,8,8,8,8,8,8,8,2,29,30,36,31,33,12,12,14,14,0,0,-8,0,-8,8,8,8,8,26,26,29969]} 1. Nf3 {[%emt 0:00:07]} d5 {[%emt 0:00:05]} 2. e3 {[%emt 0:00:24]} Nf6 {[%emt 0:00:59]} 3. c4 {[%emt 0:00:10]} e6 {[%emt 0:00:26]} 4. d4 {[%emt 0:00:53]} dxc4 {[%emt 0:06:06]} 5. Bxc4 {[%emt 0:00:22]} c5 {[%emt 0:00:10]} 6. O-O {[%emt 0:00:49]} a6 {[%emt 0:00:20]} 7. dxc5 {[%emt 0:04:46]} Bxc5 {[%emt 0:00:18]} 8. Qxd8+ {[%emt 0:00:21]} Kxd8 {[%emt 0:00:06]} 9. Be2 {[%emt 0:00:55] D27: Queen's Gambit Accepted: Classical main line: 7 e4!? and 7 a4.} Ke7 {[%emt 0:03:43]} 10. Nfd2 {[%emt 0:07:26]} Nbd7 {[%emt 0:07:28]} 11. Nb3 {[%emt 0:01:25] White is slightly better.} Bd6 {[%emt 0:01:41]} 12. N1d2 {[%emt 0:01:02]} Nc5 {[%emt 0:10:23]} 13. Nxc5 {[%emt 0:13:22]} Bxc5 {[%emt 0:00:06]} 14. a3 $146 {[%emt 0:09:23]} (14. Nb3 Bd6 15. Bf3 e5 16. Bd2 e4 17. Be2 Bg4 18. Bxg4 Nxg4 19. h3 Ne5 20. Rad1 {½-½ Henderson de la Fuente,L (2525)-Ibarra Jerez,J (2559) ESP-chT CECLUB Honor 2024 (3.21)}) 14... Bd7 {[%emt 0:09:10]} 15. b4 {[%emt 0:02:15]} Ba7 {[%emt 0:02:47]} 16. Bf3 {[%emt 0:00:20]} Nd5 {[%emt 0:06:10]} 17. Bxd5 {[%emt 0:02:40]} exd5 {[%emt 0:00:06]} 18. Bb2 {[%emt 0:00:05]} f6 {[%emt 0:00:36]} 19. Rfc1 {[%emt 0:02:48]} Rhc8 {[%emt 0:06:41]} 20. Nb3 {[%emt 0:01:47]} Ba4 {[%emt 0:00:43]} 21. Nc5 {[%emt 0:01:06]} Bxc5 {[%emt 0:00:37]} 22. bxc5 {[%emt 0:00:02]} Ke6 {[%emt 0:02:06]} 23. f3 {[%emt 0:00:38]} Rc7 {[%emt 0:02:39]} 24. Bd4 {[%emt 0:00:25]} Re8 {[%emt 0:00:29]} 25. Kf2 {[%emt 0:01:26]} Kf7 {[%emt 0:02:28]} 26. h4 {[%emt 0:04:57]} h5 {[%emt 0:02:01]} 27. Rab1 {[%emt 0:02:07]} Bc6 {[%emt 0:00:35]} 28. Rg1 {[%emt 0:00:27]} Rh8 {[%emt 0:01:18]} 29. Ke1 {[%emt 0:06:40]} Ke6 {[%emt 0:02:14]} 30. Kd2 {[%emt 0:00:16]} Bb5 {[%emt 0:02:40]} 31. Rb4 {[%emt 0:00:57]} Kd7 {[%emt 0:03:51]} 32. a4 {[%emt 0:04:04]} Bc6 {[%emt 0:00:05]} 33. Bc3 {[%emt 0:02:07]} Ke6 {[%emt 0:02:28]} 34. Kd3 {[%emt 0:02:25]} Kf7 {[%emt 0:04:11]} 35. Be1 {[%emt 0:01:10]} Re7 {[%emt 0:10:05]} 36. Bg3 {[%emt 0:05:11]} Rhe8 {[%emt 0:01:16]} 37. Re1 {[%emt 0:00:59]} Rd7 {[%emt 0:00:46]} 38. a5 {[%emt 0:02:09]} Rc8 {[%emt 0:01:34]} 39. Bd6 {[%emt 0:01:11] Opposite bishops and equal position} Rh8 {[%emt 0:00:43]} 40. Kd4 {[%emt 0:00:48]} Rh6 {[%emt 0:02:39]} 41. Bf4 {[%emt 0:01:07]} Rh8 {[%emt 0:00:13]} 42. Reb1 {[%emt 0:00:41]} Bb5 {[%emt 0:02:30]} 43. Bd6 {[%emt 0:00:20]} Bc6 {[%emt 0:02:42]} 44. Rb6 {[%emt 0:00:23]} Rc8 {[%emt 0:00:13]} 45. Rg1 {[%emt 0:00:11]} Rh8 {[%emt 0:00:37]} 46. Rb4 {[%emt 0:01:13]} Ke6 {[%emt 0:01:12]} 47. Kd3 {[%emt 0:00:53]} Rh7 {[%emt 0:01:06]} 48. Kd2 {[%emt 0:00:47]} Rf7 {[%emt 0:01:10]} 49. Rgb1 {[%emt 0:00:18]} Rh8 {[%emt 0:00:14]} 50. Rb6 {[%emt 0:00:45]} Rc8 {[%emt 0:00:29]} 51. R1b4 {[%emt 0:00:10]} Rd7 {[%emt 0:00:37]} 52. Ke1 {[%emt 0:00:28]} Kf7 {[%emt 0:00:53]} 53. Kf2 {[%emt 0:00:12]} Ke6 {[%emt 0:00:17]} 54. Rb1 {[%emt 0:01:06]} Kf7 {[%emt 0:00:20]} 55. R6b4 {[%emt 0:00:08]} Rh8 {[%emt 0:00:09]} 56. Rf4 {[%emt 0:00:35]} Ke6 {[%emt 0:00:28]} 57. Rg1 {[%emt 0:00:20]} Rh7 {[%emt 0:00:58]} 58. Rb4 {[%emt 0:00:18]} Rf7 {[%emt 0:00:44]} 59. g4 {[%emt 0:01:43]} hxg4 {[%emt 0:00:29]} 60. Rbxg4 {[%emt 0:00:03]} Bb5 {[%emt 0:00:43]} 61. e4 {[%emt 0:00:49]} dxe4 {[%emt 0:01:28]} 62. Rxe4+ {[%emt 0:00:01]} Kd7 {[%emt 0:00:11]} 63. Rge1 {[%emt 0:00:20]} Kc6 {[%emt 0:00:54]} 64. Kg3 {[%emt 0:00:14]} g5 {[%emt 0:00:30]} 65. hxg5 {[%emt 0:04:17] [#] and g6 would now be decisive} fxg5 {[%emt 0:00:06]} 66. Re5 {[%emt 0:00:17]} Rhg7 {[%emt 0:00:32]} 67. R1e4 {[%emt 0:02:37]} Rg6 {[%emt 0:00:49]} 68. Re7 {[%emt 0:01:14]} Rgf6 {[%emt 0:00:32]} 69. Rxf7 {[%emt 0:00:10]} Rxf7 $11 {[%emt 0:00:03][%mdl 4096] Endgame KRB-KRB} 70. Re5 {[%emt 0:00:10]} Rg7 {[%emt 0:00:22]} 71. Be7 {[%emt 0:00:20]} Bc4 {[%emt 0:00:47]} 72. Bf6 {[%emt 0:01:27]} (72. Rxg5 $2 {perishes.} Rxe7 73. f4 Re3+ 74. Kg4 Ra3 $19) 72... Rf7 {[%emt 0:00:25]} 73. Bxg5 {[%emt 0:00:09]} Bd5 {[%emt 0:00:08]} 74. f4 {[%emt 0:00:35]} Kxc5 {[%emt 0:00:26]} 75. f5 {[%emt 0:00:14]} Kd6 {[%emt 0:00:58]} 76. Kf4 {[%emt 0:00:29]} Rc7 {[%emt 0:00:39] [#] Threatens to win with ...Rc4+.} 77. f6 {[%emt 0:04:02]} Be6 {[%emt 0:00:14]} 78. Re3 {[%emt 0:01:51]} Rc5 {[%emt 0:00:29]} 79. Rd3+ {[%emt 0:00:53]} Rd5 {[%emt 0:00:16]} 80. Rxd5+ {[%emt 0:00:30]} Bxd5 {[%emt 0:00:54]} 81. Kf5 {[%emt 0:00:07]} Kd7 {[%emt 0:00:09]} 82. Kg6 {[%emt 0:00:16]} Ke6 $2 {[%mdl 40960] Weighted Error Value: White=0.04 (flawless) /Black=0.04 (flawless)  An unexpected result.  Loses game:     	---       	Black=1      Inaccurate:     	White=2     	Black=3      OK:         	White=25    	Black=26     Best:        	White=1     	---} (82... Ke8 $11) 1/2-1/2

[Event "SixDays Budapest January IM-A 2025"]
[Site "Budapest"]
[Date "2025.01.27"]
[Round "2.3"]
[White "Mauron, Pierre"]
[Black "Pribelszky, Bence Daniel"]
[Result "0-1"]
[Annotator "TA"]
[ECO "B06"]
[WhiteElo "2016"]
[BlackElo "2391"]
[PlyCount "94"]
[EventDate "2025.01.24"]
[EventType "tourn"]
[EventCountry "HUN"]
[SourceTitle "playchess.com"]
[Source "ChessBase"]
[SourceQuality "1"]
[TimeControl "5400+30"]

{[%evp 9,94,33,36,40,33,3,22,-2,11,7,0,0,0,0,13,-3,0,0,3,16,50,35,39,28,14,0,0,0,0,0,-3,-61,-70,-60,-84,-51,-62,-77,-84,-80,-12,-19,0,-22,-21,-29,0,0,0,-46,0,0,0,0,0,0,0,0,0,0,0,0,0,0,0,0,0,0,8,0,0,0,0,0,0,-25,-8,-43,-43,-230,-228,-29957,-29959,-5081,-352,-29988,-29989]} 1. e4 {[%emt 0:00:01]} g6 {[%emt 0:02:01]} 2. d4 {[%emt 0:00:38]} Bg7 {[%emt 0:00:07]} 3. Nc3 {[%emt 0:00:46]} a6 {[%emt 0:00:13]} 4. Nf3 {[%emt 0:03:26]} d6 {[%emt 0:00:28]} 5. Bc4 {[%emt 0:01:34]} b5 {[%emt 0:01:55]} 6. Bb3 {[%emt 0:04:16]} e6 {[%emt 0:04:47]} 7. Bg5 {[%emt 0:04:26]} Ne7 {[%emt 0:00:53]} 8. a4 {[%emt 0:02:09] The position is equal.} b4 {[%emt 0:01:48]} 9. Ne2 {[%emt 0:00:48]} h6 {[%emt 0:04:35]} 10. Be3 {[%emt 0:01:47]} Bb7 {[%emt 0:05:20]} 11. Ng3 {[%emt 0:01:35]} a5 {[%emt 0:02:43]} 12. O-O {[%emt 0:01:44]} Nd7 {[%emt 0:01:07]} 13. c3 {[%emt 0:05:59]} bxc3 {[%emt 0:06:59]} 14. bxc3 {[%emt 0:02:01]} O-O {[%emt 0:03:02]} 15. Qd2 {[%emt 0:03:25]} Kh7 {[%emt 0:00:55]} 16. h4 {[%emt 0:01:13]} f5 {[%emt 0:18:49]} 17. Bxe6 {[%emt 0:08:03] Hoping for exf5.} fxe4 {[%emt 0:01:03]} 18. Nh2 {[%emt 0:01:33]} Nf6 {[%emt 0:01:55]} 19. Ng4 {[%emt 0:13:22][%cal Rg4h6]} Ned5 {[%emt 0:14:10]} 20. Rfb1 {[%emt 0:05:08]} ({Reject} 20. Bxh6 Nxg4 21. Bg5 (21. Bxg7 $2 Qxh4 22. Bxg4 Kxg7 $19) 21... Ngf6 $17 (21... e3 22. fxe3 Ngf6 23. h5 $16)) (20. h5 $11 Nxh5 21. Bxd5 (21. Bxh6 e3 $15) (21. Nxe4 $2 Ndf4 $19) 21... Bxd5 22. Bxh6) 20... Nxg4 $15 {[%emt 0:05:32]} 21. Bxg4 {[%emt 0:01:37]} Qxh4 {[%emt 0:00:50]} 22. Rxb7 {[%emt 0:04:31]} Qxg4 {[%emt 0:00:14]} 23. c4 {[%emt 0:01:00]} Qc8 {[%emt 0:03:04] [#] And now ...Nxe3 would win. Black is more active.} 24. Rb3 {[%emt 0:02:42]} Nb6 {[%emt 0:02:25]} (24... Nb4 $17 25. Nxe4 Qe6) 25. Rc1 {[%emt 0:06:05]} Qg4 {[%emt 0:05:19]} 26. Rb5 {[%emt 0:01:23]} Nxa4 {[%emt 0:02:13]} 27. Rxa5 {[%emt 0:00:30]} Rxa5 {[%emt 0:04:32]} 28. Qxa5 {[%emt 0:00:03]} Nb6 {[%emt 0:00:04]} 29. Qa7 {[%emt 0:02:59]} (29. Qb5 $11) 29... Rf7 {[%emt 0:03:24]} (29... d5 $15 30. c5 Nc4 31. Qxc7 Rc8) 30. Qb7 $11 {[%emt 0:01:41]} Re7 {[%emt 0:01:26]} 31. c5 {[%emt 0:04:43]} dxc5 {[%emt 0:00:04]} 32. Rxc5 {[%emt 0:00:56]} h5 {[%emt 0:01:31]} 33. Rxc7 {[%emt 0:01:22]} Rxc7 {[%emt 0:00:12]} 34. Qxc7 {[%emt 0:00:28]} Nd5 {[%emt 0:00:02]} 35. Qc1 {[%emt 0:04:13] Prevents Qd1+} h4 {[%emt 0:00:39]} 36. Nf1 {[%emt 0:00:36]} h3 {[%emt 0:03:32][%csl Gh3][%cal Rg4g2]} 37. Ng3 {[%emt 0:01:05]} hxg2 {[%emt 0:00:28]} 38. Kxg2 {[%emt 0:00:20]} Qf3+ {[%emt 0:00:36]} 39. Kg1 {[%emt 0:01:18]} Bf6 {[%emt 0:00:17]} 40. Qe1 {[%emt 0:04:43]} Bh4 {[%emt 0:00:14]} 41. Nf1 {[%emt 0:00:57]} Qg4+ {[%emt 0:00:26]} 42. Kh2 {[%emt 0:00:31]} Be7 {[%emt 0:00:43]} 43. Ng3 {[%emt 0:01:31]} Bd6 {[%emt 0:00:04] Threatens to win with ...Qf3.} 44. Bd2 $2 {[%emt 0:00:44] White does not recover from this.} (44. Kg1 $15) 44... Qf3 $19 {[%emt 0:00:24][%cal Oe4e3] ( -> ...e3!)} 45. Kg1 $2 {[%emt 0:01:08] [#]} (45. Qg1 $19 Qh5+ 46. Kg2) 45... e3 $1 {[%emt 0:00:36][%mdl 512]} 46. Bxe3 {[%emt 0:01:55]} (46. Ne4 Qg4+) 46... Bxg3 $2 {[%emt 0:00:27]} (46... Nxe3 47. Qxe3 Qxe3 48. fxe3 Bxg3) 47. fxg3 $2 {[%emt 0:00:19]} (47. Bg5 $19 Bh2+ 48. Kxh2 Qh5+ 49. Kg2 Qxg5+ 50. Kf3) 47... Nxe3 {[%emt 0:00:11] Weighted Error Value: White=0.49/Black=0.16 (very precise) .  Loses game:     	White=1     	---        Mistake:       	White=3     	Black=2      Inaccurate:     	White=2     	Black=2      OK:         	White=14    	Black=12     Best:        	White=2     	Black=3      Brilliant:      	---       	Black=1} 0-1